Cogmind - Beta 14 @@@ ROGUE MODE // 2024.08.12 @ 03:34:27 Player: Rosa Result: Destroyed by G-34 Mercenary with Small Laser Performance ------------- Evolutions (0) 0 Regions Visited (2) 400 Robots Destroyed (14) 70 Value Destroyed (290) 290 Prototype IDs (1) 20 Alien Tech Used (0) 0 Bonus (0) 0 TOTAL SCORE: 780 Bonus ------- None Cogmind --------- Core Integrity 0/250 Matter 300/300 Energy 97/100 System Corruption 0% Temperature Warning (318) Movement Walking (190) Ox1 Location -10/Mines Parts ------- > --- POWER (1) -------- (None) > --- PROPULSION (2) --- Carbon-fiber Leg > --- UTILITY (2) ------ Small Storage Unit Sensor Drone Bay (0/20) > --- WEAPON (2) ------- Small Laser > --- INVENTORY (8) ---- Light Ion Engine Small Laser Small Laser Small Laser Small Laser Field Laser Rocket Launcher Scythe Peak State ------------ > --- POWER ------------ Light Angular Momentum Engine > --- PROPULSION ------- Carbon-fiber Leg > --- UTILITY ---------- Small Storage Unit Sensor Drone Bay > --- WEAPON ----------- Small Laser Small Laser > --- INVENTORY -------- Light Ion Engine Small Laser Small Laser Small Laser Small Laser Field Laser Rocket Launcher Scythe [Rating: 20] Favorites ----------- Power Ion Engine Engine Ion Engine Propulsion Aluminum Leg Treads Light Treads Leg Aluminum Leg Wheel Wheel Utility Small Storage Unit Device Sensor Drone Bay Storage Small Storage Unit Processor Transport Network Coupler Weapon Small Laser Energy Gun Small Laser Ballistic Gun Light Assault Rifle Build | -11 -10 -10 ------- Run | Yrd Mat Min Slots Evolved . | . . . Power . | . . . Propulsion . | . . . Utility . | . . . Weapon . | . . . Parts Attached 20 | 8 7 5 Power 5 | 2 2 1 Engine 5 | 2 2 1 Core . | . . . Reactor . | . . . Propulsion 6 | 3 . 3 Treads 1 | 1 . . Leg 3 | 2 . 1 Wheel 2 | . . 2 Hover . | . . . Flight . | . . . Utility 3 | 1 1 1 Device 1 | . . 1 Storage 1 | 1 . . Processor 1 | . 1 . Hackware . | . . . Protection . | . . . Artifact . | . . . Weapon 6 | 2 4 . Energy Gun 5 | 2 3 . Energy Cannon . | . . . Ballistic Gun 1 | . 1 . Ballistic Cannon . | . . . Launcher . | . . . Special Weapon . | . . . Impact Weapon . | . . . Slashing Weapon . | . . . Piercing Weapon . | . . . Special Melee Weapon . | . . . Unidentified Prototypes 1 | . . 1 Parts Lost 4 | . 1 3 Power 1 | . . 1 Propulsion 2 | . 1 1 Utility . | . . . Weapon 1 | . . 1 Highest Loss Streak 2 | . 1 2 To Critical Strikes . | . . . Average Slot Usage (%) 84 | . 82 84 Engine 14 | . 14 14 Leg 14 | . 18 13 Device 9 | . . 12 Storage 14 | . 14 14 Processor 2 | . 6 1 Energy Gun 27 | . 25 28 Peak Build Rating 20 | 6 6 20 Average Rating 11 | 4 5 13 On Entrance 4 | . 6 6 Naked Turns . | . . . Heaviest Build 30 | 14 14 30 Greatest Support 26 | 20 20 26 Greatest Overweight (x) 8 | . 1 8 Average Overweight (x) 1 | . . 1 Largest Inventory Capacity 8 | 8 8 8 Average Capacity 7 | 7 8 8 Most Carried 8 | 2 8 8 Average Carried 6 | 1 5 6 Final Capacity 8 | 8 8 8 Final Carried 8 | 2 7 8 Class Distribution -------------------- 100% | Mutant Dominant Class ---------------- Mutant | -10/Materials Mutant | -10/Mines Resources | -11 -10 -10 ----------- Run | Yrd Mat Min Matter Collected 405 | 207 158 40 Remotely . | . . . Salvage Created 396 | . 263 133 Parts 29 | . 17 12 Haulers Intercepted 1 | . 1 . Recyclers Shooed . | . . . Parts Field Recycled . | . . . Retrieved Matter . | . . . Parts Self-Destructed . | . . . Prevented . | . . . Kills | -11 -10 -10 ------- Run | Yrd Mat Min Combat Hostiles Destroyed 11 | . 4 7 Guns 11 | . 4 7 Classes Destroyed 4 | . 3 1 Hauler 1 | . 1 . Watcher 2 | . 2 . Swarmer 6 | . . 6 Grunt 5 | . 4 1 Best Kill Streak 3 | . 3 3 Combat Bots Only 3 | . 2 3 Max Kills in Single Turn 2 | . 1 2 Gunslinging 1 | . . 1 Exploded . | . . . Melee . | . . . Uniques/NPCs Destroyed . | . . . Combat | -11 -10 -10 -------- Run | Yrd Mat Min Hostile Shots Fired 91 | . 40 51 Missed 22 | . 10 12 Damage Taken 851 | . 412 439 Core 256 | . 130 126 Absorbed by Shields . | . . . Core Remaining (%) 100 | 100 . . Volleys Fired 51 | . 32 19 Largest 2 | . 2 2 Hottest 100 | . 100 80 Shots Fired 84 | . 48 36 Gun 84 | . 48 36 Cannon . | . . . Launcher . | . . . Special . | . . . Kinetic 20 | . 20 . Thermal 64 | . 28 36 Explosive . | . . . Electromagnetic . | . . . Robot Hit Streak 7 | . 5 7 Robot Miss Streak 5 | . 3 5 Penetration Max . | . . . Secondary Targets 2 | . . 2 Max Gunslinging Chain 1 | . . 1 Shots Hit Robots 45 | . 25 20 Core Hits 25 | . 16 9 Critical Kills . | . . . Critical Parts Destroyed . | . . . Critical Strikes 1 | . 1 . Burn 1 | . 1 . Melee Attacks . | . . . Impact . | . . . Slashing . | . . . Piercing . | . . . Sneak Attacks . | . . . Combat Hostiles . | . . . Follow-up Attacks . | . . . Damage Inflicted 496 | . 264 232 Guns 496 | . 264 232 Cannons . | . . . Explosions . | . . . Melee . | . . . Ramming . | . . . Kinetic 116 | . 116 . Thermal 380 | . 148 232 Explosive . | . . . Electromagnetic . | . . . Impact . | . . . Slashing . | . . . Piercing . | . . . Highest Corruption . | . . . Average Corruption . | . . . Corruption Purged . | . . . Corruption Blocked . | . . . Overload Shots . | . . . Overflow Damage . | . . . Projectiles . | . . . Explosions . | . . . Melee . | . . . Knockbacks . | . . . Impact . | . . . Kinetic . | . . . Secondary . | . . . Self-Inflicted Damage . | . . . Shots . | . . . Rammed . | . . . Targets Rammed . | . . . Kicked . | . . . Crushed . | . . . Highest Temperature 325 | . 325 317 Average Temperature 123 | . 137 102 Received Heat Transfer 402 | . 231 171 Effects 3 | . 3 . Interference 2 | . 2 . Short Circuit 1 | . 1 . Siege Activations . | . . . Robots Corrupted . | . . . Combat Hostiles . | . . . Parts Fried . | . . . Impact Corruptions . | . . . Robots Melted . | . . . Combat Hostiles . | . . . Parts Melted 1 | . . 1 Heat Transferred 996 | . 471 525 Parts Sabotaged . | . . . Parts Stolen . | . . . Parts Stripped . | . . . Power Chain Reactions . | . . . Alert | -11 -10 -10 ------- Run | Yrd Mat Min Peak Influence 156 | . 156 130 Initial 60 | . . 60 Average 60 | . 97 51 Maximum Alert Level . | . . . Low Security (%) 100 | 100 100 100 Level 1 . | . . . Level 2 . | . . . Level 3 . | . . . Level 4 . | . . . Level 5 . | . . . High Security . | . . . Max Security . | . . . Squads Dispatched 1 | . 1 . Investigation . | . . . Extermination . | . . . Reinforcement 1 | . 1 . Assault . | . . . Garrison . | . . . Intercept . | . . . Searches Triggered . | . . . Construction Impeded . | . . . Haulers Reinforced . | . . . Active Scanning Responses . | . . . Cargo Convoy Interrupts . | . . . Stealth | -11 -10 -10 --------- Run | Yrd Mat Min Distress Signals 1 | . 1 . Communications Jammed . | . . . Distress Signals . | . . . Times Spotted 18 | . 10 8 Peak Tracking Total 4 | . 4 3 Tactical Retreats . | . . . Traps | -11 -10 -10 ------- Run | Yrd Mat Min Traps Triggered . | . . . Indirectly . | . . . Trap Hack Attempts . | . . . Triggered . | . . . Disarmed . | . . . Reprogrammed . | . . . Reused . | . . . Traps Extracted . | . . . Installed . | . . . Triggered . | . . . Machines | -11 -10 -10 ---------- Run | Yrd Mat Min Machines Disabled . | . . . Max in Single Turn . | . . . Machines Repaired . | . . . Machines Dismantled . | . . . Machines Sabotaged . | . . . Overloaded Fab Kills . | . . . Hacking | -11 -10 -10 --------- Run | Yrd Mat Min Machines Accessed 4 | . 1 3 Terminals 2 | . 1 1 Fabricators . | . . . Repair Stations . | . . . Recycling Units . | . . . Scanalyzers . | . . . Garrison Access . | . . . Total Hacks 6 | . 3 3 Successful 6 | . 3 3 Failed . | . . . Catastrophic . | . . . Database Lockouts . | . . . Manual . | . . . Terminals 4 | . 3 1 Fabricators . | . . . Repair Stations . | . . . Recycling Units . | . . . Scanalyzers . | . . . Garrison Access . | . . . Terminal Hacks 6 | . 3 3 Record 4 | . 3 1 Open Door 2 | . . 2 Fabricator Hacks . | . . . Repair Station Hacks . | . . . Recycling Unit Hacks . | . . . Scanalyzer . | . . . Garrison Access Hacks . | . . . Unauthorized Hacks . | . . . Terminals . | . . . Fabricators . | . . . Repair Stations . | . . . Recycling Units . | . . . Scanalyzers . | . . . Garrison Access . | . . . Data Cores Recovered . | . . . Used . | . . . Hacking Detections 2 | . 1 1 Full Trace Events . | . . . Feedback Events . | . . . Feedback Blocked . | . . . Robot Schematics Acquired . | . . . Robots Built . | . . . Authchips . | . . . Time . | . . . Total Robot Build Rating . | . . . Part Schematics Acquired . | . . . Parts Built . | . . . Authchips . | . . . Time . | . . . Total Part Build Rating . | . . . Parts Repaired . | . . . Time . | . . . Parts Recycled . | . . . Recycled Matter . | . . . Retrieved Matter . | . . . Retrieved Components . | . . . Parts Scanalyzed . | . . . Part Schematics Acquired . | . . . Parts Damaged . | . . . Bothacking | -11 -10 -10 ------------ Run | Yrd Mat Min Used RIF Installer . | . . . Robots Hacked . | . . . Non-combat . | . . . Combat . | . . . Robot Hacks Applied . | . . . Relay Couplers Released . | . . . Fabnet Peak Effective % . | . . . Robots Rewired . | . . . Allies Hacked . | . . . Hacks Repelled . | . . . Allies | -11 -10 -10 -------- Run | Yrd Mat Min Total Allies . | . . . Largest Group . | . . . Highest-Rated Group . | . . . Highest-Rated Ally . | . . . Total Orders . | . . . Ally Attacks . | . . . Total Damage . | . . . Kills . | . . . Allies Corrupted . | . . . Allies Melted . | . . . Intel | -11 -10 -10 ------- Run | Yrd Mat Min Robot Analysis Total . | . . . Derelict Logs Recovered . | . . . Drone Launches 26 | . . 26 Drone Recoveries 6 | . . 6 Exploration | -11 -10 -10 ------------- Run | Yrd Mat Min Turns Passed 1327 | 70 338 919 Spaces Moved 561 | 45 155 361 Core 10 | 5 . 5 Treads 2 | 2 . . Legs 531 | 38 155 338 Wheels 18 | . . 18 Hover . | . . . Flight . | . . . Fastest Speed 50 | 50 120 90 Average Speed 202 | 114 159 232 Slowest Speed 450 | 160 190 450 Overloaded Moves . | . . . Propulsion Burnouts . | . . . Robots Hopped . | . . . Cave-ins Triggered . | . . . Exploration Rate (%) 36 | 3 35 71 Regions Visited 2 Branch Regions 1 Pre-discovered Areas . | . . . Known Exits Taken . | . . . Unknown Exits Taken 2 | 1 1 . Scrap Searched . | . . . Spaces Dug . | . . . Terrain Destroyed . | . . . Melee . | . . . Projectile . | . . . AOE . | . . . Terrain Rammed . | . . . Walls Destroyed . | . . . Machines Disabled . | . . . Actions | -11 -10 -10 --------- Run | Yrd Mat Min Total 672 | 60 201 411 Wait 12 | 6 . 6 Move 559 | 44 154 361 Hop . | . . . Pick Up 17 | 2 5 10 Fast Attach 8 | 5 1 2 Attach 1 | 1 . . Detach . | . . . Swap 11 | 2 6 3 Drop 13 | . 3 10 Fire 51 | . 32 19 Melee . | . . . Ram . | . . . Kick . | . . . Crush . | . . . Escape Stasis . | . . . Rewire . | . . . Trap . | . . . Miscellaneous . | . . . Route ------- -11/Scrapyard -10/Materials -10/Mines History --------- Turn | Location | Event 7 | -11/Scrapyard | Discovered new exit (range 14) 71 | -11/Scrapyard | Entered Materials 195 | -10/Materials | Core integrity fell below 50% 275 | -10/Materials | Discovered new exit (range 15) 318 | -10/Materials | Build established: Mutant 409 | -10/Materials | Entered Mines 502 | -10/Mines | Found the Drone Emporium 511 | -10/Mines | Found Prototype Device 511 | -10/Mines | Identified Sensor Drone Bay 749 | -10/Mines | Received a Rocket Launcher from a helpful Derelict 1009 | -10/Mines | Met a Derelict who couldn't figure out how to use a Trap Extractor 1318 | -10/Mines | Core integrity fell below 20% 1328 | -10/Mines | Destroyed by G-34 Mercenary with Small Laser Last Messages --------------- 01172_ Acquired Com. Wheel. 01176_ Acquired 10 matter. 01179_ Acquired Carbon-fiber Leg. 01181_ Dropped Com. Wheel. 01181_ Acquired 10 matter. 01189_ Acquired Lgt. Angular Momentum Engine. 01208_ Connecting with Terminal... >>Query(Recycling Unit) Deconstruction apparatus for breaking down old components delivered by Recycler class robots. Condensed matter is contained within the unit until it reaches a certain quota, at which point it is transferred to the nearest [DSF]. 01323_ Sml. Laser destroyed. 01325_ Lgt. Angular Momentum Engine destroyed. 01326_ G-47 Trooper heat short circuits Aluminum Leg. 01327_ G-47 Trooper overheating. 01327_ Aluminum Leg melted. 01327_ G-47 Trooper destroyed. Map ----- +----------------------------------------------------+ | | | | | | | | | | | | | | | | | | | | | | | | | | | | | | | | | | | | | | | ????????????????????????????????? | | ????????????????????????????????? | | ????????????????????????????????? | | ?######????????????????? ??????? | | ?# """ #######????????? ??????? | | ?# """ ! nnn#???????? ??????? | | ?# """ %@nnnn#??????? ???????? | | ?# g ####nn#?????? #????????? | | ?# ?????#nn#?????# #????????? | | ?# ???????#nn#????# ##???????? | | ??????????#nn##### #???????? | | ?????????##nn n #???????? | | ????????## n #???????? | | ????????# n #??????? | | ????????# ### #???? | | ????????# ##?? ???? | | ????????## ###### ???? | | ?????????## ##?? ????? | | ??????????# """" #???? ?#### | | ??????????# """" #?????#?## | | ??????????# """" ##??????## | | ??????????## ##???????# " | | ???????????# ##????????# " | | ??????##???## ###?????????# " | | ?????## #???## #??????????## | | ?????# #???# #???????????## | | ??????# ##?# ###??????????## | | ???????# ### k #???????????# # | | ??????## #### ############# # | | ?????## #??# # | | ????## ##?# ######### ##### | +----------------------------------------------------+ Best States ------------- Heat Dissipation 25 Energy Generation 18 Energy Capacity 250 Matter Stores 300 Matter Capacity 300 Sight Range 16 Terrain Scan Density 10 Evasion (%) 55 Recoil Reduction 1 Item Schematics ----------------- None Robot Schematics ------------------ None Fabricated ------------ Nothing Alien Tech Used ----------------- None Achievements -------------- None Challenges ------------ None Game ------ Seed SurgeLegCasing Manual? 0 Play Time 00:11:39 Cumulative 14.6 hours Start 2024.08.11 @ 16:18:58 End 2024.08.12 @ 03:34:27 Sessions 3 Manual Loads 0 Difficulty Rogue Special Mode None Game No. 55 Rogue 53 Adventurer 0 Explorer 2 Win Type - Total 0 Types 0/0/0/0/0/0/0/0/0 Lore% 6 Gallery% 22 Achievement% 16 Wizard Run 0 Options --------- Layout 1 ASCII 0 Keyboard 1 Movement Numpad Keybinds 0 Fullscreen 1 Font 32/SmallcapsGlow Map View 50x35 Zoom Use 0% Tactical HUD 1 Map Filters NONE Filters NONE Steam 1 RUN: 4dacec75-fdc4-449c-ad38-66cdf7e256d1